[Event "44th Chess Olympiad Open 2022"]
[Site "Chennai"]
[Date "2022.07.29"]
[Round "1.14"]
[White "Abdusattorov, Nodirbek"]
[Black "Chaulagain, Purushottam"]
[Result "1-0"]
[WhiteElo "2688"]
[BlackElo "1975"]
[Annotator "TA"]
[PlyCount "63"]
[EventDate "2022.??.??"]
[TimeControl "60"]

{[%evp 17,63,20,24,0,0,0,0,0,0,0,36,14,31,31,31,31,45,49,159,168,165,172,204,
204,206,212,211,208,216,208,254,285,266,231,316,312,347,253,489,487,637,608,
1228,972,950,933,1337,1275]} 1. d4 {[%emt 0:00:07]} d5 {[%emt 0:00:45]} 2. c4 {
[%emt 0:00:06]} e6 {[%emt 0:00:08]} 3. Nc3 {[%emt 0:00:05]} Nf6 {[%emt 0:00:36]
} 4. cxd5 {[%emt 0:00:23]} exd5 {[%emt 0:00:16]} 5. Bg5 {[%emt 0:00:06]} Be7 {
[%emt 0:00:21]} 6. e3 {[%emt 0:00:10]} O-O {[%emt 0:00:49]} 7. Bd3 {[%emt 0:00:
00]} c6 {[%emt 0:01:16]} 8. Nge2 {[%emt 0:00:29]} Re8 {[%emt 0:03:00]} 9. O-O {
[%emt 0:00:48]} Nbd7 {[%emt 0:01:50]} 10. a4 $5 {[%emt 0:02:23] An interesting
side line. D35: Queen's Gambit Declined: Exchange Variation.} a5 {[%emt 0:06:
44]} 11. Qc2 {[%emt 0:01:22]} Nf8 {[%emt 0:01:19] [#]} 12. Rae1 $146 {[%emt 0:
02:47] The position is equal.} ({Predecessor:} 12. f3 g6 13. e4 dxe4 14. fxe4
Ne6 15. Bxf6 Bxf6 16. d5 Nd4 17. Nxd4 Bxd4+ 18. Kh1 Qh4 {0-1 (31) Tovmasyan,H 
(1940)-Manukyan,G (2317) Van Nuys 2016}) 12... Ng6 {[%emt 0:06:14]} 13. Ng3 {
[%emt 0:09:55]} Ng4 {[%emt 0:10:42]} 14. Bxe7 {[%emt 0:00:06]} Qxe7 {[%emt 0:
01:07]} 15. e4 {[%emt 0:07:31]} dxe4 {[%emt 0:07:09]} 16. Ncxe4 {[%emt 0:00:02]
} Be6 {[%emt 0:04:16]} 17. Nc5 {[%emt 0:06:10]} Nf4 {[%emt 0:00:00] White now
steadily converts the win.} (17... Qh4 $14 18. h3 Nf6) 18. Bxh7+ $16 {[%emt 0:
03:44]} Kh8 {[%emt 0:01:24] [#]} 19. Bf5 $1 {[%emt 0:06:21]} Bxf5 {[%emt 0:07:
56]} 20. Qxf5 {[%emt 0:00:06] The board is on fire.} Qh4 {[%emt 0:00:00][%csl
Gg4][%cal Rh4h2]} (20... Qxe1 $2 21. Qxf4 Qb4 22. Qxg4 $18) 21. h3 {[%emt 0:00:
20]} Nh6 {[%emt 0:02:28]} 22. Qd7 {[%emt 0:01:39]} Red8 {[%emt 0:00:00]} 23.
Qxb7 {[%emt 0:00:07]} Rab8 {[%emt 0:02:14]} 24. Qxc6 {[%emt 0:00:00]} Rxd4 {
[%emt 0:00:23]} 25. Nd7 {[%emt 0:01:48][%cal Yc5d7,Yd7e5,Ye5f3]} Rd8 {[%emt 0:
01:22] [#]} 26. Ne5 {[%emt 0:00:06] aiming for Nf3.} R4d6 {[%emt 0:03:24]} 27.
Qf3 {[%emt 0:09:10] Black must now prevent Re4.} Rf6 $2 {[%emt 0:02:28]} (27...
Nd3 {keeps fighting.} 28. Nf5 (28. Nxf7+ Nxf7 29. Qxf7 Nxe1 $16) 28... Nxe5 29.
Rxe5 (29. Nxh4 Nxf3+ 30. Nxf3 Nf5 $18) 29... Nxf5) 28. Re4 $18 {[%emt 0:01:20]
White is clearly winning.} Rd2 {[%emt 0:02:40]} 29. Qc3 {[%emt 0:02:05][%csl
Ya5,Yd2]} Qg5 {[%emt 0:01:26]} 30. Nf3 {[%emt 0:00:00]} Nxh3+ {[%emt 0:00:21]}
31. gxh3 {[%emt 0:00:31] Qc8+ would kill now.} Qd5 {[%emt 0:01:06]} 32. Qxd2 {
[%emt 0:00:27] Weighted Error Value: White=0.08 (flawless) /Black=0.42} 1-0

[Event "44th Chess Olympiad Open 2022"]
[Site "Chennai"]
[Date "2022.07.29"]
[Round "1.14"]
[White "Sindarov, Javokhir"]
[Black "Bhandari, Kshitiz"]
[Result "1-0"]
[WhiteElo "2629"]
[BlackElo "2071"]
[Annotator "TA"]
[PlyCount "79"]
[EventDate "2022.??.??"]
[TimeControl "60"]

{[%evp 10,79,14,21,31,34,34,28,29,25,32,8,18,11,5,12,33,33,72,57,74,75,55,48,
132,132,138,139,127,97,156,167,165,168,239,218,220,229,232,219,321,314,308,312,
299,291,312,301,294,293,335,339,378,366,358,360,358,356,345,319,341,350,483,
476,519,446,585,567,29985,29986,29998,29999]} 1. e4 {[%emt 0:00:08]} e5 {
[%emt 0:00:16]} 2. Nf3 {[%emt 0:00:21]} Nc6 {[%emt 0:00:21]} 3. Bc4 {[%emt 0:
00:00]} Bc5 {[%emt 0:01:28]} 4. Nc3 {[%emt 0:01:54]} Nf6 {[%emt 0:01:42]} 5. d3
{[%emt 0:00:12]} d6 {[%emt 0:00:15]} 6. Na4 {[%emt 0:03:57]} Qe7 {[%emt 0:00:
00] C50: Hungarian Defence and Giuoco Pianissimo.} 7. Nxc5 {[%emt 0:15:48]}
dxc5 {[%emt 0:00:14]} 8. Bg5 {[%emt 0:00:03] [#]} a6 $146 {[%emt 0:06:12]
White has an edge.} ({Predecessor:} 8... h6 9. Bh4 Nd4 10. c3 Nxf3+ 11. Qxf3 g5
12. Bg3 Bd7 13. Qe2 O-O-O 14. O-O-O Bc6 {½-½ (35) Milliet,S-Dubreuil,J (2069)
France 1999}) 9. Bd5 {[%emt 0:03:32]} Nd8 {[%emt 0:06:23]} 10. Qd2 {[%emt 0:00:
00]} Bg4 {[%emt 0:11:21]} 11. Rg1 {[%emt 0:00:42]} a5 {[%emt 0:13:49] White
must now prevent ...c6.} 12. a4 {[%emt 0:02:24]} h6 {[%emt 0:18:26]} 13. Bxf6 {
[%emt 0:00:53]} gxf6 {[%emt 0:00:02]} 14. Qc3 {[%emt 0:07:07]} Be6 {[%emt 0:00:
00]} 15. Nh4 {[%emt 0:14:20][%cal Yf2f4]} Qd6 {[%emt 0:06:14]} 16. Qb3 {
[%emt 0:07:52]} c6 {[%emt 0:01:54]} ({Better is} 16... Ra6 $14) 17. Bxe6 $16 {
[%emt 0:04:01]} fxe6 {[%emt 0:00:07]} 18. g3 {[%emt 0:00:50]} Qd4 {[%emt 0:00:
00]} 19. Ke2 {[%emt 0:02:23]} Kd7 {[%emt 0:03:03] [#]} (19... Qb4 $142) 20. f4
$1 {[%emt 0:01:40]} Kc7 {[%emt 0:00:17]} 21. Nf3 {[%emt 0:00:24][%cal Yh4f3,
Yf3d2,Yd2b3] Active counter play!} Qd6 {[%emt 0:00:14]} (21... Qd7 $142 22.
fxe5 f5) 22. fxe5 $18 {[%emt 0:00:13]} fxe5 {[%emt 0:00:02]} 23. Nd2 {[%emt 0:
00:08]} b5 {[%emt 0:09:15]} 24. Rgf1 {[%emt 0:00:18]} Rh7 {[%emt 0:00:00]} (
24... Rb8 $142 25. Rf6 h5) 25. axb5 {[%emt 0:06:26]} cxb5 {[%emt 0:00:02]} 26.
Qxb5 {[%emt 0:01:51]} Nc6 {[%emt 0:00:13] Threatens to win with ...Nd4+.} 27.
Nb3 {[%emt 0:00:32]} Rb8 {[%emt 0:08:57]} 28. Qc4 {[%emt 0:00:06]} (28. Qxc5
Qxc5 29. Nxc5 Nd4+ 30. Kd1 Rxb2 $16) 28... Rb4 {[%emt 0:01:24] [#]} 29. Qc3 {
[%emt 0:00:07]} ({Less strong is} 29. Qxc5 Qxc5 30. Nxc5 Nd4+ 31. Kd1 Rxb2 $16)
29... Kb6 {[%emt 0:01:02]} 30. Nd2 {[%emt 0:00:14]} Qd4 {[%emt 0:01:31]} 31.
Qxd4 {[%emt 0:01:03] Really sharp!} exd4 {[%emt 0:00:51]} (31... Nxd4+ $2 32.
Kd1 $18) 32. Nc4+ {[%emt 0:00:11]} Kc7 {[%emt 0:00:46]} 33. Rf6 {[%emt 0:00:00]
} Kd7 {[%emt 0:00:50]} 34. b3 {[%emt 0:00:43]} ({Don't play} 34. Nxa5 Rxb2 35.
Nxc6 Kxc6 36. Rxe6+ Kb7) 34... Ke7 {[%emt 0:00:24]} 35. Rg6 {[%emt 0:00:00]} ({
Worse is} 35. Nxa5 Nxa5 36. Rg6 Nc6 $17) 35... h5 {[%emt 0:00:33]} 36. Nxa5 {
[%emt 0:00:29]} Ne5 {[%emt 0:00:03]} 37. Rg5 {[%emt 0:00:03]} Kf6 {[%emt 0:00:
53]} 38. h4 {[%emt 0:00:05] Hoping for Rf1+.} Ng4 {[%emt 0:00:37]} 39. Nc6 {
[%emt 0:00:30]} Rbb7 {[%emt 0:00:28]} 40. Rf1+ {[%emt 0:00:38] Weighted Error
Value: White=0.06 (flawless) /Black=0.45} 1-0

[Event "44th Chess Olympiad Open 2022"]
[Site "Chennai"]
[Date "2022.07.29"]
[Round "1.14"]
[White "Thing, Bibek"]
[Black "Yakubboev, Nodirbek"]
[Result "0-1"]
[WhiteElo "2260"]
[BlackElo "2620"]
[Annotator "TA"]
[PlyCount "70"]
[EventDate "2022.??.??"]
[TimeControl "60"]

{[%evp 17,70,2,25,18,13,0,52,7,15,7,27,2,6,0,0,0,0,-12,-6,-10,-15,-21,-16,-21,
-18,-17,-22,-100,-100,-101,-98,-117,-90,-176,-167,-333,-336,-324,-339,-522,
-517,-536,-536,-530,-520,-598,-579,-559,-605,-591,-579,-720,-711,-676,-660]} 1.
e4 {[%emt 0:00:42]} c5 {[%emt 0:00:09]} 2. Nf3 {[%emt 0:00:31]} Nc6 {[%emt 0:
00:00]} 3. Bb5 {[%emt 0:01:50]} e6 {[%emt 0:00:04]} 4. O-O {[%emt 0:00:41]}
Nge7 {[%emt 0:00:03]} 5. c3 {[%emt 0:04:59]} a6 {[%emt 0:00:04]} 6. Ba4 {
[%emt 0:03:11]} b5 {[%emt 0:07:25]} 7. Bc2 {[%emt 0:00:58]} d5 {[%emt 0:00:04]}
8. d4 {[%emt 0:00:39]} cxd4 {[%emt 0:09:50]} 9. Nxd4 {[%emt 0:01:17]} Bb7 {
[%emt 0:10:42]} 10. Nxc6 {[%emt 0:02:10] B30: Sicilian: 2...Nc6 3 Bb5, lines
without ...g6.} Bxc6 {[%emt 0:00:26]} 11. Qe2 {[%emt 0:00:25]} Qc7 {[%emt 0:00:
00]} (11... dxe4 $11 12. Rd1 Qc8) 12. Nd2 {[%emt 0:03:40] White is slightly
better.} Ng6 {[%emt 0:01:17]} 13. Nf3 {[%emt 0:05:12]} Bd6 {[%emt 0:00:18] [#]}
14. Rd1 $146 {[%emt 0:04:23] Black must now prevent exd5.} ({Predecessor:} 14.
Re1 dxe4 15. Bxe4 O-O 16. h4 Rae8 17. a4 Bd7 18. axb5 axb5 19. Be3 Bc5 20. h5 {
1-0 (35) Baklan,V (2602)-Getz,N (2333) Reykjavik 2011}) 14... O-O {[%emt 0:00:
00]} 15. exd5 {[%emt 0:06:59]} Bxd5 {[%emt 0:00:08]} 16. Be4 {[%emt 0:00:12]}
Ne7 {[%emt 0:09:23][%cal Yg6e7,Ye7d5,Yd5f6]} 17. Bg5 {[%emt 0:08:20]} Bxe4 {
[%emt 0:00:28]} 18. Qxe4 {[%emt 0:00:14]} Nd5 {[%emt 0:00:15]} 19. Rd3 {
[%emt 0:01:57]} h6 {[%emt 0:06:35][%cal Yh7h6,Yh6g5]} 20. Re1 {[%emt 0:18:35]}
Bxh2+ {[%emt 0:10:25]} 21. Nxh2 {[%emt 0:19:31] And now Bc1 would win.} hxg5 {
[%emt 0:00:07]} 22. Rh3 {[%emt 0:00:31]} (22. Nf3 $11 {remains equal.} Nf6 23.
Qe2) 22... Nf6 $17 {[%emt 0:00:25]} 23. Qe3 {[%emt 0:00:00] [#]} Qf4 {[%emt 0:
00:42]} 24. Rg3 {[%emt 0:00:32]} Qxe3 {[%emt 0:02:20] Black is more active.}
25. Rexe3 {[%emt 0:01:30]} (25. Rgxe3 $17 Rfd8 26. Nf3) 25... Rfd8 $19 {
[%emt 0:00:12] Threatens to win with ...Rd1+.} 26. Rxg5 $2 {[%emt 0:07:39] [#]}
(26. Kf1) 26... Rd1+ $1 {[%emt 0:00:09]} 27. Nf1 {[%emt 0:00:00]} Rad8 {
[%emt 0:00:15]} 28. Re2 {[%emt 0:01:31]} (28. g4 {keeps fighting.}) 28... Ra1 {
[%emt 0:00:19] Black is clearly winning.} 29. f3 {[%emt 0:00:50]} Rdd1 {
[%emt 0:00:27]} 30. Rf2 {[%emt 0:00:11]} Nd5 {[%emt 0:00:24]} 31. Re5 {[%emt 0:
01:16]} Nf4 {[%emt 0:00:11]} 32. Re3 {[%emt 0:01:05]} Nd3 {[%emt 0:00:00]} 33.
Rxd3 {[%emt 0:00:12]} Rxd3 {[%emt 0:00:02]} 34. a3 {[%emt 0:00:35]} Rdd1 {
[%emt 0:00:05]} 35. g4 {[%emt 0:00:11]} Rdb1 {[%emt 0:00:04] Weighted Error
Value: White=0.41/Black=0.07 (flawless)} 0-1

[Event "44th Chess Olympiad Open 2022"]
[Site "Chennai"]
[Date "2022.07.29"]
[Round "1.14"]
[White "Jaiswal, Rupesh"]
[Black "Vokhidov, Shamsiddin"]
[Result "0-1"]
[WhiteElo "2083"]
[BlackElo "2552"]
[Annotator "TA"]
[PlyCount "114"]
[EventDate "2022.??.??"]
[TimeControl "60"]

{[%evp 9,114,12,21,5,22,0,0,-18,-10,-36,24,-15,5,-49,-34,-33,-27,-25,-20,-33,
-27,-62,-60,-50,-60,-111,-62,-62,-74,-103,-106,-106,-73,-93,-70,-112,-109,-102,
-96,-185,-198,-206,-198,-206,-197,-194,-194,-194,-194,-201,-195,-184,-134,-124,
-127,-110,-112,-102,-94,-285,-287,-274,-247,-367,-365,-337,-305,-346,-339,-533,
-476,-601,-590,-591,-568,-598,0,-591,-603,-602,-580,-586,-570,-538,-559,-547,
-553,-557,-521,-551,-537,-527,-503,-889,-881,-855,-843,-821,-798,-795,-773,
-691,-447,-433,-380,-572,-508]} 1. e4 {[%emt 0:00:06]} c5 {[%emt 0:00:04]} 2.
Nf3 {[%emt 0:00:12]} d6 {[%emt 0:00:05]} 3. Bb5+ {[%emt 0:01:23]} Nd7 {[%emt 0:
00:00]} 4. a4 {[%emt 0:05:19]} Ngf6 {[%emt 0:01:20]} 5. Nc3 {[%emt 0:00:10]} a6
{[%emt 0:00:07]} 6. Bc4 {[%emt 0:00:41] B51: Sicilian: Moscow Variation (3
Bb5+) without 3...Bd7.} Qa5 {[%emt 0:00:23][%cal Yb7b5]} 7. O-O {[%emt 0:11:04]
} b5 {[%emt 0:02:48]} 8. Bd5 {[%emt 0:03:56] [#] The position is equal.} Nxd5
$146 {[%emt 0:03:01]} ({Predecessor:} 8... Rb8 9. d4 b4 10. Ne2 e6 11. Bc6 Qc7
12. d5 Be7 13. Ng5 O-O 14. Bxd7 Bxd7 15. dxe6 fxe6 {0-1 (43) Arsovic,J (2014)
-Blagojevic,T (2267) Vrnjacka Banja 2021}) 9. exd5 {[%emt 0:01:09]} Bb7 {
[%emt 0:03:01]} (9... b4 $15 10. Ne2 Nb6) 10. Re1 $1 $11 {[%emt 0:06:15]} Nf6 {
[%emt 0:02:04]} 11. Qe2 {[%emt 0:04:18]} ({White should play} 11. Ng5 $11)
11... b4 {[%emt 0:08:17]} ({Don't play} 11... Nxd5 12. Qe4 Qb4 13. d4 $16) (
11... Bxd5 $2 12. Nxd5 Nxd5 13. Qe4 $18 (13. Qd3 Nb4 $14)) 12. Ne4 {[%emt 0:00:
00]} Nxe4 {[%emt 0:01:16]} 13. Qxe4 {[%emt 0:00:13]} c4 $36 {[%emt 0:01:42]
Black is more active.} 14. Qxc4 {[%emt 0:03:09]} Rc8 {[%emt 0:00:00]} 15. Qd3 {
[%emt 0:03:28]} Qxd5 {[%emt 0:03:58]} 16. Qxd5 {[%emt 0:04:34]} Bxd5 {[%emt 0:
03:46]} 17. Nd4 {[%emt 0:03:13]} (17. c3 $15) 17... e5 {[%emt 0:00:00]} (17...
g6 $17 18. c3 Bg7) 18. c3 $15 {[%emt 0:01:56]} Kd7 {[%emt 0:00:00]} 19. Nc2 {
[%emt 0:00:39]} a5 {[%emt 0:02:24]} 20. Ne3 {[%emt 0:04:45]} Bb3 {[%emt 0:01:
06] Black is more active.} 21. cxb4 {[%emt 0:03:55]} axb4 {[%emt 0:00:00]} 22.
d3 {[%emt 0:00:30]} d5 {[%emt 0:01:26][%cal Yd6d5,Yd5d4]} 23. Bd2 {[%emt 0:02:
21]} f6 {[%emt 0:00:28]} 24. Kf1 {[%emt 0:14:53]} (24. Rec1 $17) 24... d4 $19 {
[%emt 0:03:51]} 25. Nc4 {[%emt 0:04:57]} Bxc4 {[%emt 0:00:00]} 26. dxc4 {
[%emt 0:00:04]} Rxc4 {[%emt 0:00:04]} 27. Rec1 {[%emt 0:01:03]} Rxc1+ {[%emt 0:
00:08]} 28. Rxc1 {[%emt 0:00:10] Endgame KRB-KRB} Bd6 {[%emt 0:01:08]} 29. Ke2
{[%emt 0:01:12]} Ke6 $1 {[%emt 0:06:50]} 30. Rc6 {[%emt 0:02:10]} Rb8 {[%emt 0:
01:21]} ({Black should try} 30... Kd5 $19 31. Rb6 Rb8 32. Rxb8 Bxb8 33. Bxb4
Kc4) 31. b3 $17 {[%emt 0:00:38]} Kd5 {[%emt 0:01:04]} 32. Ra6 {[%emt 0:01:12]}
Bc5 {[%emt 0:00:34]} 33. g4 {[%emt 0:02:52]} e4 {[%emt 0:00:49]} 34. Bf4 $2 {
[%emt 0:01:40]} (34. Kd1 $17) 34... Rc8 $1 $19 {[%emt 0:00:08]} 35. Ra5 {
[%emt 0:02:30]} d3+ {[%emt 0:01:36]} 36. Kd2 {[%emt 0:00:00]} (36. Ke1 $142)
36... Ke6 {[%emt 0:02:03]} 37. Ra6+ {[%emt 0:00:26]} Kd7 {[%emt 0:03:06]} 38.
Be3 {[%emt 0:01:39]} Bxe3+ {[%emt 0:02:50]} 39. Kxe3 {[%emt 0:00:09] KR-KR} (
39. fxe3 $142 Rc2+ 40. Kd1) 39... Rc2 {[%emt 0:00:09]} 40. Ra7+ {[%emt 0:00:11]
} Kc6 {[%emt 0:00:24] Threatens to win with ...Re2+.} 41. Ra6+ {[%emt 0:33:30]}
Kc7 {[%emt 0:31:08] And now ...Re2+ would win.} 42. Ra7+ {[%emt 0:01:18]} Kc6 {
[%emt 0:05:00]} 43. Ra6+ {[%emt 0:01:35] [#]} Kb7 $1 {[%emt 0:00:55]} 44. Rd6 {
[%emt 0:00:49]} Re2+ {[%emt 0:00:45]} 45. Kf4 {[%emt 0:01:10]} Kc7 {[%emt 0:00:
10]} 46. Rd4 {[%emt 0:00:00]} g5+ {[%emt 0:00:00]} 47. Kf5 {[%emt 0:00:00]} d2
{[%emt 0:00:00]} 48. Rd5 {[%emt 0:00:00]} Kc6 {[%emt 0:00:00]} 49. Rd8 {
[%emt 0:00:00]} Rxf2+ {[%emt 0:00:00]} 50. Kxe4 {[%emt 0:00:00]} Rxh2 {[%emt 0:
00:00] aiming for ...Rh3.} 51. Rd3 {[%emt 0:00:00]} (51. Ke3 $142 Kb6 52. Ke4)
51... Rf2 {[%emt 0:00:00]} 52. Ke3 {[%emt 0:00:00] [#]} Rf4 $1 {[%emt 0:00:00]}
53. Rxd2 {[%emt 0:00:00]} Rxg4 {[%emt 0:00:00]} 54. Rf2 {[%emt 0:00:00]} Rf4 {
[%emt 0:00:00] White must now prevent ...Rxf2.} 55. Rh2 {[%emt 0:00:00]} Rh4 {
[%emt 0:00:00]} 56. Rf2 {[%emt 0:00:00]} Rh6 {[%emt 0:00:00]} 57. Rc2+ {
[%emt 0:00:00]} (57. Ke4 $142 Kc7 58. Rf1) 57... Kd5 {[%emt 0:00:00] Weighted
Error Value: White=0.29 (precise) /Black=0.19 (very precise)} 0-1

[Event "44th Chess Olympiad Open 2022"]
[Site "Chennai"]
[Date "2022.07.29"]
[Round "1.15"]
[White "Cornette, Matthieu"]
[Black "Smith, Shreyas"]
[Result "1-0"]
[WhiteElo "2551"]
[BlackElo "2147"]
[Annotator "TA"]
[PlyCount "65"]
[EventDate "2022.??.??"]
[TimeControl "60"]

{[%evp 11,65,28,31,24,41,41,38,22,37,33,42,33,36,39,42,28,29,33,41,15,15,7,35,
7,0,0,0,10,0,0,66,50,44,63,108,0,154,107,130,127,160,105,83,92,29989,29990,
29990,29991,29991,29992,29992,29993,29993,29992,29992,29993]} 1. e4 {[%emt 0:
00:00]} c5 {[%emt 0:00:20]} 2. Nf3 {[%emt 0:00:10][%cal Yg1f3,Yf3d4,Yd4b5]} Nc6
{[%emt 0:00:09]} 3. d4 {[%emt 0:00:43]} cxd4 {[%emt 0:00:07]} 4. Nxd4 {[%emt 0:
00:04]} e5 {[%emt 0:00:08]} 5. Nb5 {[%emt 0:00:11]} d6 {[%emt 0:00:00]} 6. c4 {
[%emt 0:00:40]} Be6 {[%emt 0:00:22] is more profitable than 6... Be7 at the
moment.} 7. Bd3 {[%emt 0:01:22] B32: Sicilian: Löwenthal and Kalashnikov
Variations.} a6 {[%emt 0:02:26]} 8. N5c3 {[%emt 0:00:06]} g6 {[%emt 0:00:32] 
[#]} 9. Nd5 $146 {[%emt 0:03:03] White is slightly better.} ({Predecessor:} 9.
O-O Bg7 10. Nd5 Nf6 11. Nbc3 O-O 12. Be3 Nd7 13. Qd2 Nd4 14. f4 f5 15. fxe5
dxe5 {1-0 (121) Korchmar,V (2450)-Iljin,T (2335) Chess.com INT 2022}) 9... Bxd5
{[%emt 0:01:31]} 10. cxd5 {[%emt 0:00:53]} Nd4 {[%emt 0:00:30]} 11. Be3 {
[%emt 0:01:15]} Bg7 {[%emt 0:03:17]} 12. O-O {[%emt 0:01:26]} Nf6 {[%emt 0:01:
22][%cal Yg8f6,Yf6d7,Yd7c5]} 13. Nd2 {[%emt 0:05:49]} O-O {[%emt 0:00:28]} 14.
a4 {[%emt 0:06:16][%cal Ya2a4,Ya4a5]} Nd7 {[%emt 0:02:05]} 15. a5 {[%emt 0:11:
55]} Nc5 {[%emt 0:03:16] Pair of Knights!} 16. Nc4 {[%emt 0:01:43]} f5 {
[%emt 0:04:49]} 17. Bxd4 {[%emt 0:03:34]} (17. exf5 {with more complications.}
Nxd3 18. Qxd3 Nxf5 19. Nd2) 17... exd4 {[%emt 0:00:33]} 18. exf5 {[%emt 0:00:
03]} Nxd3 {[%emt 0:01:16]} 19. Qxd3 {[%emt 0:00:09]} Rxf5 {[%emt 0:00:25]} 20.
Rae1 {[%emt 0:05:27]} Qf8 {[%emt 0:00:00]} (20... Qc7 $11) 21. Re6 $14 {
[%emt 0:20:52]} Rd8 {[%emt 0:02:06]} 22. Qb3 {[%emt 0:03:31]} Rf7 {[%emt 0:02:
27]} 23. f3 {[%emt 0:03:14]} (23. g3 $16) 23... Bh6 $2 {[%emt 0:04:33] [#]} ({
Black should try} 23... Rc7 $11) 24. Qd3 {[%emt 0:02:51]} (24. Rfe1 $142) 24...
Bg7 {[%emt 0:11:58]} 25. Rfe1 {[%emt 0:00:00]} Rfd7 {[%emt 0:01:12]} 26. R1e4 {
[%emt 0:02:29] 0x0.001e3a2b4456dp-1022s more active pieces.} (26. Kf2 $142)
26... Qf5 $16 {[%emt 0:03:15]} 27. Re8+ {[%emt 0:06:28]} Kf7 $2 {[%emt 0:04:47]
[#] A mistake that costs the game.} (27... Rxe8 $16 28. Rxe8+ Kf7) 28. Nxd6+ $1
{[%emt 0:01:47] White mates.} Rxd6 {[%emt 0:00:24]} 29. R4e7+ {[%emt 0:00:04]}
Kf6 {[%emt 0:00:26]} 30. Qxd4+ {[%emt 0:00:05]} Kg5 {[%emt 0:00:00]} 31. h4+ {
[%emt 0:00:56]} Kh5 {[%emt 0:00:27]} 32. g4+ {[%emt 0:00:08]} Kxh4 {[%emt 0:00:
17]} 33. Qf2+ {[%emt 0:00:06] Weighted Error Value: White=0.14 (very precise) /
Black=0.48} (33. gxf5+ $2 {is the wrong capture.} Bxd4+ 34. Kg2 Rxe8 35. Rxe8
gxf5 $19) 1-0

[Event "44th Chess Olympiad Open 2022"]
[Site "Chennai"]
[Date "2022.07.29"]
[Round "1.15"]
[White "Maurizzi, Marc`Andria"]
[Black "Shaw, Jaden"]
[Result "1-0"]
[WhiteElo "2506"]
[BlackElo "1930"]
[Annotator "ChessBase"]
[PlyCount "79"]
[EventDate "2022.??.??"]
[TimeControl "60"]

1. d4 {[%emt 0:00:14]} Nf6 {[%emt 0:00:32]} 2. Bg5 {[%emt 0:00:17]} e6 {
[%emt 0:01:29]} 3. Nd2 {[%emt 0:00:15]} Be7 {[%emt 0:00:59]} 4. Ngf3 {[%emt 0:
00:00]} d5 {[%emt 0:02:00]} 5. e3 {[%emt 0:00:36]} Nbd7 {[%emt 0:00:41]} 6. Bd3
{[%emt 0:01:20]} O-O {[%emt 0:01:06]} 7. O-O {[%emt 0:01:00]} c5 {[%emt 0:00:
00]} 8. c3 {[%emt 0:00:39]} b6 {[%emt 0:02:00]} 9. a4 {[%emt 0:08:48]} Bb7 {
[%emt 0:06:04]} 10. a5 {[%emt 0:01:01]} c4 {[%emt 0:03:42]} 11. a6 {[%emt 0:00:
00]} Bc6 {[%emt 0:01:51]} 12. Bc2 {[%emt 0:00:49]} Qc7 {[%emt 0:05:02]} 13. e4
{[%emt 0:10:31]} dxe4 {[%emt 0:11:22]} 14. Nxe4 {[%emt 0:00:45]} Rfe8 {[%emt 0:
00:00]} 15. Nxf6+ {[%emt 0:03:52]} Bxf6 {[%emt 0:03:06]} 16. Bxf6 {[%emt 0:00:
00]} Nxf6 {[%emt 0:00:11]} 17. Ne5 {[%emt 0:00:40]} Rab8 {[%emt 0:05:36]} 18.
Re1 {[%emt 0:03:07]} b5 {[%emt 0:04:29]} 19. Re3 {[%emt 0:00:56]} Red8 {
[%emt 0:09:57]} 20. Rg3 {[%emt 0:05:06]} Be4 {[%emt 0:05:35]} 21. Bxe4 {
[%emt 0:11:16]} Nxe4 {[%emt 0:00:32]} 22. Re3 {[%emt 0:00:27]} f5 {[%emt 0:00:
00]} 23. h4 {[%emt 0:10:23]} Rb6 {[%emt 0:06:02]} 24. h5 {[%emt 0:01:33]} Qd6 {
[%emt 0:04:35]} 25. h6 {[%emt 0:00:22]} g6 {[%emt 0:03:48]} 26. Qf3 {[%emt 0:
00:00]} Rf8 {[%emt 0:02:02]} 27. Qf4 {[%emt 0:01:08]} g5 {[%emt 0:05:09]} 28.
Qf3 {[%emt 0:09:33]} Rxa6 {[%emt 0:00:29]} 29. Rae1 {[%emt 0:00:39]} Qe7 {
[%emt 0:03:33]} 30. Qh5 {[%emt 0:00:07]} Qe8 {[%emt 0:00:49]} 31. Qh2 {[%emt 0:
00:00]} Rf6 {[%emt 0:01:38]} 32. f3 {[%emt 0:00:25]} Nd6 {[%emt 0:00:23]} 33.
d5 {[%emt 0:00:01]} Nf7 {[%emt 0:01:25]} 34. Nxf7 {[%emt 0:00:20]} Kxf7 {
[%emt 0:02:49]} 35. Qh5+ {[%emt 0:00:44]} Rg6 {[%emt 0:00:28]} 36. dxe6+ {
[%emt 0:01:16]} Kf6 {[%emt 0:00:29]} 37. Re5 {[%emt 0:00:42]} Qe7 {[%emt 0:00:
00]} 38. Rxf5+ {[%emt 0:00:23]} Kxf5 {[%emt 0:00:10]} 39. Qg4+ {[%emt 0:00:01]}
Kf6 {[%emt 0:00:10]} 40. Qd4+ {[%emt 0:00:01]} 1-0